Cogmind - Beta 13 @@@ ROGUE MODE // 2024.07.12 @ 03:12:14 Player: Halfie Result: Self-destructed Performance ------------- Evolutions (1) 500 Regions Visited (2) 400 Robots Destroyed (8) 40 Value Destroyed (229) 229 Prototype IDs (3) 60 Alien Tech Used (0) 0 Bonus (0) 0 TOTAL SCORE: 1229 Bonus ------- None Cogmind --------- Core Integrity 108/400 Matter 115/300 Energy 22/100 System Corruption 5% Temperature Hot (202) Movement Hovering (60) Location -9/Materials Parts ------- > --- POWER (1) -------- (None) > --- PROPULSION (2) --- Improved Hover Unit > --- UTILITY (4) ------ (None) > --- WEAPON (2) ------- Beam Cannon Beam Cannon > --- INVENTORY (5) ---- Light Ion Engine Compact Wheel Improved VTOL Module Small Laser Light Assault Rifle Peak State ------------ > --- POWER ------------ Improved Ion Engine > --- PROPULSION ------- Aluminum Leg Improved Aluminum Leg > --- UTILITY ---------- Small Storage Unit Seismic Detector Improved Targeting Computer > --- WEAPON ----------- EM Pulse Cannon EM Pulse Cannon > --- INVENTORY -------- Ion Engine Light Ion Engine Light Ion Engine Compact Wheel Small Storage Unit Medium Laser Small Laser Light Assault Rifle [Rating: 15] Favorites ----------- Power Light Ion Engine Engine Light Ion Engine Propulsion Aluminum Leg Leg Aluminum Leg Hover Unit Improved Hover Unit Flight Unit Improved VTOL Module Utility Small Storage Unit Device Seismic Detector Storage Small Storage Unit Processor Improved Targeting Computer Weapon EM Pulse Cannon Energy Gun Medium Laser Energy Cannon EM Pulse Cannon Ballistic Gun Shotgun Build | -11 -10 -9 ------- Run | Yrd Mat Mat Slots Evolved 2 | . . 2 Power . | . . . Propulsion . | . . . Utility 2 | . . 2 Weapon . | . . . Parts Attached 29 | 8 1 20 Power 4 | 1 1 2 Engine 4 | 1 1 2 Core . | . . . Reactor . | . . . Propulsion 10 | 2 . 8 Treads . | . . . Leg 7 | 2 . 5 Wheel . | . . . Hover 1 | . . 1 Flight 2 | . . 2 Utility 4 | 2 . 2 Device 1 | 1 . . Storage 1 | 1 . . Processor 2 | . . 2 Hackware . | . . . Protection . | . . . Artifact . | . . . Weapon 11 | 3 . 8 Energy Gun 2 | 2 . . Energy Cannon 7 | . . 7 Ballistic Gun 2 | 1 . 1 Ballistic Cannon . | . . . Launcher . | . . . Special Weapon . | . . . Impact Weapon . | . . . Slashing Weapon . | . . . Piercing Weapon . | . . . Special Melee Weapon . | . . . Unidentified Prototypes 1 | . . 1 Corrupted Parts 1 | . . 1 System Corruption 5 | . . 5 Parts Lost 2 | . . 2 Power . | . . . Propulsion . | . . . Utility . | . . . Weapon 2 | . . 2 Highest Loss Streak 2 | . . 2 To Critical Strikes . | . . . Average Slot Usage (%) 77 | . 100 66 Engine 10 | . 14 8 Leg 19 | . 28 15 Device 9 | . 14 7 Storage 9 | . 14 7 Processor 5 | . . 7 Energy Gun 9 | . 28 . Energy Cannon 10 | . . 16 Naked Turns 82 | . . 82 Heaviest Build 25 | 12 14 25 Greatest Support 23 | 20 20 23 Greatest Overweight (x) 2 | 1 . 2 Average Overweight (x) . | . . . Largest Inventory Capacity 8 | 8 8 8 Average Capacity 7 | 7 8 7 Most Carried 8 | 4 6 8 Average Carried 5 | 1 4 6 Final Capacity 8 | 8 8 5 Final Carried 6 | 4 6 5 Class Distribution -------------------- 100% | Mutant Dominant Class ---------------- Mutant | -10/Materials Mutant | -9/Materials Resources | -11 -10 -9 ----------- Run | Yrd Mat Mat Matter Collected 301 | 280 . 21 Remotely . | . . . Salvage Created 326 | 106 86 134 Parts 14 | 5 3 6 Haulers Intercepted . | . . . Recyclers Shooed . | . . . Parts Field Recycled . | . . . Retrieved Matter . | . . . Parts Self-Destructed . | . . . Prevented . | . . . Kills | -11 -10 -9 ------- Run | Yrd Mat Mat Combat Hostiles Destroyed 4 | . 2 2 Guns 2 | . 2 . Cannons 2 | . . 2 Classes Destroyed 6 | 2 1 3 Tunneler 2 | 2 . . Recycler 1 | 1 . . Watcher 1 | . . 1 Grunt 2 | . 2 . Duelist 1 | . . 1 Sentry 1 | . . 1 Best Kill Streak 2 | 2 1 1 Combat Bots Only 1 | . 1 1 Max Kills in Single Turn 1 | 1 1 1 Gunslinging . | . . . Exploded . | . . . Melee . | . . . Uniques/NPCs Destroyed . | . . . Combat | -11 -10 -9 -------- Run | Yrd Mat Mat Hostile Shots Fired 79 | . 14 65 Missed 25 | . 4 21 Damage Taken 772 | . 147 625 Core 367 | . 75 292 Absorbed by Shields . | . . . Core Remaining (%) 85 | 100 70 . Volleys Fired 41 | 8 16 17 Largest 2 | 2 2 2 Hottest 126 | 90 90 126 Shots Fired 70 | 16 31 23 Gun 50 | 16 31 3 Cannon 20 | . . 20 Launcher . | . . . Special . | . . . Kinetic 3 | . . 3 Thermal 57 | 16 31 10 Explosive . | . . . Electromagnetic 10 | . . 10 Robot Hit Streak 7 | 7 4 4 Robot Miss Streak 5 | 1 5 3 Penetration Max . | . . . Secondary Targets . | . . . Shots Hit Robots 38 | 13 13 12 Core Hits 15 | 4 6 5 Critical Kills . | . . . Critical Parts Destroyed . | . . . Critical Strikes 2 | 2 . . Burn 2 | 2 . . Melee Attacks . | . . . Impact . | . . . Slashing . | . . . Piercing . | . . . Sneak Attacks . | . . . Combat Hostiles . | . . . Follow-up Attacks . | . . . Damage Inflicted 614 | 153 162 299 Guns 337 | 153 162 22 Cannons 255 | . . 255 Explosions . | . . . Melee . | . . . Ramming 22 | . . 22 Kinetic 22 | . . 22 Thermal 403 | 153 162 88 Explosive . | . . . Electromagnetic 167 | . . 167 Impact . | . . . Slashing . | . . . Piercing . | . . . Highest Corruption 5 | . . 5 Average Corruption 5 | . . 5 Corruption Purged . | . . . Corruption Blocked . | . . . Effects 5 | . . 5 Message Errors 1 | . . 1 Matter Fused 1 | . . 1 Energy Discharges 2 | . . 2 Data Loss (major) 1 | . . 1 Overload Shots . | . . . Overflow Damage . | . . . Projectiles . | . . . Explosions . | . . . Melee . | . . . Knockbacks . | . . . Impact . | . . . Kinetic . | . . . Secondary . | . . . Self-Inflicted Damage 8 | . . 8 Shots . | . . . Rammed 3 | . . 3 Targets Rammed 4 | . . 4 Kicked 1 | . . 1 Crushed . | . . . Highest Temperature 240 | 210 240 222 Average Temperature 85 | 96 93 63 Received Heat Transfer 336 | . 117 219 Effects 2 | 2 . . Interference 2 | 2 . . Siege Activations . | . . . Robots Corrupted . | . . . Combat Hostiles . | . . . Parts Fried 3 | . . 3 Impact Corruptions . | . . . Robots Melted . | . . . Combat Hostiles . | . . . Parts Melted 2 | 1 1 . Heat Transferred 1188 | 569 434 185 Parts Sabotaged . | . . . Parts Stolen . | . . . Parts Stripped . | . . . Power Chain Reactions . | . . . Alert | -11 -10 -9 ------- Run | Yrd Mat Mat Peak Influence 314 | 15 226 314 Initial 10 | . 9 10 Average 78 | 10 125 66 Maximum Alert Level 1 | . 1 1 Low Security (%) 85 | 100 77 87 Level 1 14 | . 22 12 Level 2 . | . . . Level 3 . | . . . Level 4 . | . . . Level 5 . | . . . High Security . | . . . Max Security . | . . . Squads Dispatched 2 | . 1 1 Investigation . | . . . Extermination . | . . . Reinforcement 2 | . 1 1 Assault . | . . . Garrison . | . . . Intercept . | . . . Searches Triggered . | . . . Construction Impeded . | . . . Haulers Reinforced . | . . . Active Scanning Responses . | . . . Cargo Convoy Interrupts . | . . . Stealth | -11 -10 -9 --------- Run | Yrd Mat Mat Distress Signals 4 | . 2 2 Communications Jammed . | . . . Distress Signals . | . . . Times Spotted 37 | . 13 24 Peak Tracking Total 10 | . 8 10 Tactical Retreats 8 | . 4 4 Traps | -11 -10 -9 ------- Run | Yrd Mat Mat Traps Triggered 2 | . . 2 Indirectly . | . . . Trap Hack Attempts . | . . . Triggered . | . . . Disarmed . | . . . Reprogrammed . | . . . Reused . | . . . Traps Extracted . | . . . Installed . | . . . Triggered . | . . . Machines | -11 -10 -9 ---------- Run | Yrd Mat Mat Machines Disabled 2 | . . 2 Max in Single Turn 1 | . . 1 Machines Repaired . | . . . Machines Dismantled . | . . . Machines Sabotaged . | . . . Overloaded Fab Kills . | . . . Hacking | -11 -10 -9 --------- Run | Yrd Mat Mat Machines Accessed 7 | . 5 2 Terminals 7 | . 5 2 Fabricators . | . . . Repair Stations . | . . . Recycling Units . | . . . Scanalyzers . | . . . Garrison Access . | . . . Total Hacks 15 | . 11 4 Successful 11 | . 8 3 Failed 4 | . 3 1 Catastrophic . | . . . Database Lockouts . | . . . Manual 9 | . 6 3 Terminals 15 | . 11 4 Fabricators . | . . . Repair Stations . | . . . Recycling Units . | . . . Scanalyzers . | . . . Garrison Access . | . . . Terminal Hacks 5 | . 4 1 Robot Analysis 1 | . 1 . Prototype ID Bank 1 | . 1 . Alert Level 1 | . . 1 Recall Investigation 1 | . 1 . Zone Layout 1 | . 1 . Fabricator Hacks . | . . . Repair Station Hacks . | . . . Recycling Unit Hacks . | . . . Scanalyzer . | . . . Garrison Access Hacks . | . . . Unauthorized Hacks 6 | . 4 2 Terminals 6 | . 4 2 Botnet 6 | . 4 2 Fabricators . | . . . Repair Stations . | . . . Recycling Units . | . . . Scanalyzers . | . . . Garrison Access . | . . . Data Cores Recovered . | . . . Used . | . . . Hacking Detections 2 | . 1 1 Full Trace Events 1 | . 1 . Feedback Events . | . . . Feedback Blocked . | . . . Robot Schematics Acquired . | . . . Robots Built . | . . . Authchips . | . . . Time . | . . . Total Robot Build Rating . | . . . Part Schematics Acquired . | . . . Parts Built . | . . . Authchips . | . . . Time . | . . . Total Part Build Rating . | . . . Parts Repaired . | . . . Time . | . . . Parts Recycled . | . . . Recycled Matter . | . . . Retrieved Matter . | . . . Retrieved Components . | . . . Parts Scanalyzed . | . . . Part Schematics Acquired . | . . . Parts Damaged . | . . . Bothacking | -11 -10 -9 ------------ Run | Yrd Mat Mat Used RIF Installer . | . . . Robots Hacked . | . . . Non-combat . | . . . Combat . | . . . Robot Hacks Applied . | . . . Relay Couplers Released . | . . . Fabnet Peak Effective % . | . . . Robots Rewired . | . . . Allies Hacked . | . . . Hacks Repelled . | . . . Allies | -11 -10 -9 -------- Run | Yrd Mat Mat Total Allies . | . . . Largest Group . | . . . Highest-Rated Group . | . . . Highest-Rated Ally . | . . . Total Orders . | . . . Ally Attacks . | . . . Total Damage . | . . . Kills . | . . . Allies Corrupted . | . . . Allies Melted . | . . . Intel | -11 -10 -9 ------- Run | Yrd Mat Mat Robot Analysis Total 1 | . 1 . Derelict Logs Recovered . | . . . Drone Launches . | . . . Drone Recoveries . | . . . Exploration | -11 -10 -9 ------------- Run | Yrd Mat Mat Turns Passed 1365 | 149 412 804 Spaces Moved 958 | 105 249 604 Core 216 | 24 . 192 Treads . | . . . Legs 637 | 81 249 307 Wheels . | . . . Hover 79 | . . 79 Flight 26 | . . 26 Fastest Speed 32 | 50 120 32 Average Speed 117 | 104 120 118 Slowest Speed 260 | 120 120 260 Overloaded Moves . | . . . Propulsion Burnouts . | . . . Robots Hopped . | . . . Cave-ins Triggered . | . . . Exploration Rate (%) 31 | 4 52 39 Regions Visited 2 Branch Regions . Pre-discovered Areas . | . . . Known Exits Taken . | . . . Unknown Exits Taken 2 | 1 1 . Scrap Searched . | . . . Spaces Dug . | . . . Terrain Destroyed . | . . . Melee . | . . . Projectile . | . . . AOE . | . . . Terrain Rammed . | . . . Walls Destroyed . | . . . Machines Disabled . | . . . Actions | -11 -10 -9 --------- Run | Yrd Mat Mat Total 1120 | 124 330 666 Wait 74 | . 64 10 Move 956 | 104 248 604 Hop . | . . . Pick Up 5 | 4 1 . Fast Attach 20 | 7 . 13 Attach 3 | . . 3 Detach 5 | . . 5 Swap 6 | 1 1 4 Drop 6 | . . 6 Fire 41 | 8 16 17 Melee . | . . . Ram 3 | . . 3 Kick 1 | . . 1 Crush . | . . . Escape Stasis . | . . . Rewire . | . . . Trap . | . . . Miscellaneous . | . . . Route ------- -11/Scrapyard -10/Materials (discovered 2 exits: *Mat / [*Min]) -9/Materials (discovered 2 exits: [*Mat] / [*Min]) History --------- Turn | Location | Event 3 | -11/Scrapyard | Discovered new exit (range 15) 150 | -11/Scrapyard | Entered Materials 303 | -10/Materials | Build established: Mutant 440 | -10/Materials | Discovered new exit (range 14) 545 | -10/Materials | Discovered new exit (range 14) 562 | -10/Materials | Entered another Materials area 562 | -9/Materials | Evolved 2 slots: Utility x2 1119 | -9/Materials | Released all parts (7) 1234 | -9/Materials | Released all parts (3) 1242 | -9/Materials | Core integrity fell below 50% 1294 | -9/Materials | Discovered new exit (range 7) 1334 | -9/Materials | Discovered new exit (range 15) 1366 | -9/Materials | Self-destructed Last Messages --------------- >>Trojan(Botnet) Trojan loaded successfully. Testing... Terminal linked with 1 system. Awaiting botnet instructions. 01272_ Acquired Shotgun. 01276_ System corrupted: Energy discharge (-28). 01294_ EXIT=FOUND 01296_ Acquired Imp. Hover Unit. 01309_ Triggered Explosive Trap. 01309_ An explosion rips through the floor. 01334_ EXIT=FOUND 01335_ W-16 Scout sends out distress signal. 01343_ Acquired Beam Cannon. 01345_ Dropped Shotgun. 01346_ Acquired Beam Cannon. 01347_ EZD&OV&%YOUNX3>1UR916 X9VK 01356_ Y-45 Defender destroyed. 01366_ System corrupted: Substantial component data lost. Map ----- +----------------------------------------------------+ | | | | | | | | | | | | | | | | | | | | | | | | | | | | | | | | | | | | | | | | | | | | | | | ????????????????###############??????????????????? | | ????????????????# [ ] #??????????????????? | | ????????????????# [ @ #??????????????????? | | ????????????????# [% ###????????????????? | | ????????????????# """ """ """ # ??????????????? | | ????????????????# """ """ """ # ############# | | ???????????????# """ """g""" # + | | ????????????????# b g # # ########### | | ????????????????# """ """ """ # ??# #?????????# | | ????????????????# """ """ """ # ????# #?????????# | | ????????????????# """ """ """ #??????# #?????????# | | ????????????????# #??????# ########??# | | ????????????????#######+##############+# ?# | | ????????????????##### + # ?# | | ????????????? # #?""" # | | ????????? < # #?"""" # | | ????????? + #?"""" + | | ?????????## # [ #?"""" # | | ??????????# #### # #?""" | | ??????????# ????# ############## | | ?????????????????# #??????????############# | | ?????????????????# #??????????# | | ?????????????????# ##?????????# ########### | | ?????????????????# T#?????????# #?######### | | ?????????????????# #????????### ### # | | ?????????????????# #????????# !# # | | ?????????????????# #????????# # # | +----------------------------------------------------+ Best States ------------- Heat Dissipation 28 Energy Generation 12 Energy Capacity 265 Matter Stores 300 Matter Capacity 300 Sight Range 16 Terrain Scan Density 10 Evasion (%) 63 Targeting Accuracy 6 Item Schematics ----------------- None Robot Schematics ------------------ None Fabricated ------------ Nothing Alien Tech Used ----------------- None Achievements -------------- None Challenges ------------ None Game ------ Seed DefenseVariableComputer Manual? 0 Play Time 00:28:33 Cumulative 4.5 hours Start 2024.07.12 @ 02:41:49 End 2024.07.12 @ 03:12:14 Sessions 1 Manual Loads 0 Difficulty Rogue Special Mode None Game No. 8 Rogue 7 Adventurer 0 Explorer 1 Win Type - Total 0 Types 0/0/0/0/0/0/0/0/0 Lore% 6 Gallery% 9 Achievement% 10 Wizard Run 0 Options --------- Layout 1 ASCII 0 Keyboard 1 Movement Numpad Keybinds 0 Fullscreen 1 Font 24/Smallcaps Map View 50x35 Zoom Use 0% Tactical HUD 1 Map Filters NONE Filters NONE Steam 1 RUN: 3bf76c48-4968-4de2-a7a9-84044065836d